[Event "FIDE World School-ch G-15 2025"]
[Site "Vrnjacka Banja"]
[Date "2025.03.24"]
[Round "5.1"]
[White "Japparbekova, Malika"]
[Black "Aldea, Maria-Antonia"]
[Result "1-0"]
[Annotator "TA"]
[ECO "C74"]
[WhiteElo "1878"]
[BlackElo "1954"]
[PlyCount "59"]
[EventDate "2025.03.19"]
[EventType "swiss"]
[EventCountry "SRB"]
[SourceTitle "playchess.com"]
[Source "ChessBase"]
[SourceQuality "1"]
[TimeControl "5400+30"]

{[%evp 12,59,0,-55,-54,-97,-33,-156,-151,-139,-110,-143,-156,-147,-122,-146,-95,-111,20,-166,-170,-159,-139,-228,-40,-64,-38,-179,321,322,302,42,376,56,509,493,433,468,1789,1812,1545,1545,1906,1918,1654,1584,6518,6507,29990,29991]} 1. e4 {[%emt 0:00:02]} e5 {[%emt 0:00:56]} 2. Nf3 {[%emt 0:00:12]} Nc6 {[%emt 0:00:06]} 3. Bb5 {[%emt 0:00:06]} a6 {[%emt 0:00:05]} 4. Ba4 {[%emt 0:00:07]} d6 {[%emt 0:00:07]} 5. c3 {[%emt 0:04:34]} f5 {[%emt 0:03:48]} 6. d4 {[%emt 0:18:34]} fxe4 {[%emt 0:01:14]} 7. Ng5 {[%emt 0:01:18]} (7. Nxe5 $11 dxe5 8. Qh5+ Ke7 9. Bxc6 bxc6 10. Qg5+ (10. Bg5+ Nf6 $11) 10... Ke8 11. Qh5+ Ke7) 7... exd4 $1 $15 {[%emt 0:05:59] C74: Ruy Lopez: Deferred Steinitz: 5 c3 f5.} 8. O-O {[%emt 0:14:20]} Nf6 {[%emt 0:06:23]} ({Better is} 8... d5 $17 9. cxd4 Nf6) 9. Re1 {[%emt 0:07:11]} (9. f3 $15) 9... d5 $146 {[%emt 0:08:46] Black is clearly better.} (9... Be7 10. Nxe4 Nxe4 11. Rxe4 O-O 12. cxd4 Bf5 13. Re1 d5 14. Nc3 Bf6 15. Bxc6 bxc6 {0-1 Picanol Alemany,A (2252)-Puertas Manzano,J (2030) Barcelona Vila de Gracia op 23rd 2019 (3)}) 10. c4 {[%emt 0:07:26]} h6 {[%emt 0:11:06]} (10... dxc4 $6 11. Nxe4 Kf7 12. Bxc6 bxc6 13. Nxf6 (13. Ng5+ Kg8 $17) 13... Qxf6 14. Nd2 $15) 11. cxd5 {[%emt 0:01:54]} hxg5 {[%emt 0:01:01]} (11... Qxd5 12. Nxe4 Nxe4 13. Nc3 $16) 12. dxc6 {[%emt 0:01:24]} b5 {[%emt 0:03:17]} 13. Bc2 {[%emt 0:01:33]} Bf5 {[%emt 0:09:26]} (13... Bb4 $142 14. Bd2 Bg4 15. Rxe4+ Nxe4 16. Qxg4 Nxd2 (16... Bxd2 $2 17. Qxe4+ Qe7 18. Nxd2 $18) 17. Nxd2 Bxd2 18. Qe2+ Kf8 19. Qxd2 Rh6) 14. Bxg5 {[%emt 0:01:05][%cal Oc2e4]} Bb4 {[%emt 0:04:30]} (14... Qd6 $17 15. g3 O-O-O (15... Qxc6 16. Qxd4 Qxc2 17. Qe5+ Be7 18. Bxf6 $16) 16. Bxf6 Qxf6 (16... gxf6 17. Bxe4 Bxe4 18. Rxe4 $11) 17. Bxe4 Bxe4 18. Rxe4 d3 (18... Qxc6 19. Rxd4 Bc5 20. Qg4+ Kb7 21. Rxd8 $11)) 15. Nd2 $2 {[%emt 0:01:45]} (15. Rxe4+ $11 Bxe4 16. Bxe4) 15... d3 $19 {[%emt 0:03:04]} 16. Bb3 {[%emt 0:05:26]} Qd6 {[%emt 0:02:18][%csl LRc6,LRh2]} 17. g3 {[%emt 0:01:26]} (17. Nf1 $17 {was worth a try.}) 17... Qxc6 $2 {[%emt 0:06:03]} (17... O-O-O $19 {[%cal Ob4c5] Threatens to win with ...Bc5!.} 18. a4 Qxc6 (18... Bc5 $2 19. Bf4 $19) 19. axb5 axb5) 18. Rc1 $15 {[%emt 0:12:33]} Qd7 {[%emt 0:03:57]} 19. Bxf6 {[%emt 0:01:34]} ({White should play} 19. a3 $15 Bg4 20. Nxe4) 19... Bxd2 $4 {[%emt 0:00:21][%mdl 8192]} (19... gxf6 $19 {and all is fine.} 20. a3 Ba5 (20... Bxd2 21. Qxd2 O-O-O 22. Rc5 $17) 21. Nxe4 O-O-O 22. Nxf6 Qd4 (22... d2 23. Qf3 $18)) 20. Qxd2 $18 {[%emt 0:01:04]} gxf6 {[%emt 0:00:06] [#]} 21. Rc3 $2 {[%emt 0:00:39]} (21. Rc5 $1 $18) 21... Kf8 $2 {[%emt 0:08:48][%mdl 8192]} (21... O-O-O $14) 22. Rec1 $2 {[%emt 0:01:08]} (22. Qf4 $18 Rh7 23. Rc5) 22... Ra7 {[%emt 0:05:01][%mdl 8192]} (22... Qh7 $1 $14 23. h4 Qh6 24. Qxh6+ Rxh6) 23. Rc6 {[%emt 0:01:15]} Kg7 {[%emt 0:01:47]} 24. R1c5 {[%emt 0:02:10][%cal Oc6f6] and Rxf6! should not be overlooked} Kg6 {[%emt 0:05:08] [#]} (24... e3 $142 25. fxe3 (25. Qxe3 Re8 $18) 25... Rf8) 25. Rxf6+ $3 {[%emt 0:03:03][%mdl 512]} Kxf6 {[%emt 0:00:33][%cal Bg6f6,Bf6e7,Be7d8][%mdl 32]} 26. Qc3+ {[%emt 0:00:04]} Ke7 {[%emt 0:02:46]} 27. Qg7+ {[%emt 0:00:10]} Kd8 {[%emt 0:02:19]} 28. Qxh8+ {[%emt 0:01:28]} Ke7 {[%emt 0:01:17]} 29. Re5+ {[%emt 0:00:25]} Kd6 {[%emt 0:01:56]} 30. Qf6+ {[%emt 0:00:12] Weighted Error Value: White=0.68/Black=1.67  Loses game:     	White=1     	Black=2      Missed win:     	White=2     	Black=2      Mistake:       	White=3     	Black=4      Inaccurate:     	White=1     	---        OK:         	White=5     	Black=5      Best:        	White=2     	Black=5} 1-0

[Event "FIDE World School-ch G-15 2025"]
[Site "Vrnjacka Banja"]
[Date "2025.03.24"]
[Round "5.2"]
[White "Zarkym, Ailin"]
[Black "Imomkuzieva, Nilufarkhon"]
[Result "1/2-1/2"]
[Annotator "TA"]
[ECO "C45"]
[WhiteElo "1763"]
[BlackElo "1983"]
[PlyCount "106"]
[EventDate "2025.03.19"]
[EventType "swiss"]
[EventCountry "SRB"]
[SourceTitle "playchess.com"]
[Source "ChessBase"]
[SourceQuality "1"]
[TimeControl "5400+30"]

{[%evp 13,106,19,0,-16,-7,-43,0,0,46,44,48,29,39,38,32,35,29,25,17,21,79,92,78,78,79,80,72,35,37,-47,-62,-45,0,0,0,0,0,0,0,0,36,0,0,0,0,-97,-90,-86,-84,-95,9,-16,-20,-21,-14,-16,-18,-12,49,50,54,38,38,5,5,0,0,0,0,0,0,0,0,0,0,0,0,0,0,0,0,0,0,0,0,0,0,0,0,0,0,0,0,0,0]} 1. e4 {[%emt 0:00:03]} e5 {[%emt 0:00:04]} 2. Nf3 {[%emt 0:00:06]} Nc6 {[%emt 0:00:05]} 3. d4 {[%emt 0:00:08]} exd4 {[%emt 0:00:07]} 4. Nxd4 {[%emt 0:00:02]} Bc5 {[%emt 0:00:38]} 5. Nf5 {[%emt 0:04:04]} Qf6 {[%emt 0:03:26]} 6. Nc3 {[%emt 0:03:24]} Nge7 {[%emt 0:00:49]} 7. Ne3 {[%emt 0:03:49]} d6 {[%emt 0:12:38]} 8. Bb5 {[%emt 0:13:55] C45: Scotch Game.} a6 {[%emt 0:01:38]} 9. Be2 $146 {[%emt 0:05:51]} (9. Ba4 O-O 10. O-O Ne5 11. Ncd5 Nxd5 12. Nxd5 Qd8 13. b4 Ba7 14. Bb3 Bg4 15. Qd2 c6 {0-1 Locatelli,V-Blezel,E Bethune op 24th 2003 (5)}) 9... Bd4 {[%emt 0:00:47]} 10. Bd2 {[%emt 0:01:23]} Qg6 {[%emt 0:01:36]} (10... O-O $11) 11. Bh5 $1 $14 {[%emt 0:03:52]} Qf6 {[%emt 0:04:19]} 12. O-O {[%emt 0:02:00]} Be6 {[%emt 0:01:37]} 13. Ned5 {[%emt 0:58:23]} Bxd5 {[%emt 0:06:35] A sharp opening} 14. exd5 {[%emt 0:00:00]} Ne5 {[%emt 0:03:47]} 15. Ne4 {[%emt 0:00:00]} Qf5 {[%emt 0:00:06]} 16. Ng3 {[%emt 0:00:00]} Qd7 {[%emt 0:02:15] [#]} (16... Qf6 $1 $11) 17. Bh6 $1 $16 {[%emt 0:00:00]} Bxf2+ {[%emt 0:05:05]} 18. Rxf2 {[%emt 0:00:00]} gxh6 {[%emt 0:00:04]} 19. Qd4 {[%emt 0:00:00][%cal Oh5f7]} O-O {[%emt 0:13:15]} 20. Rf6 {[%emt 0:00:00][%cal Oa2a4] White is more active.} Qb5 {[%emt 0:02:10]} 21. Ne4 {[%emt 0:00:00]} (21. Rd1 $1 $14) 21... Nxd5 $15 {[%emt 0:06:19]} 22. Rxh6 {[%emt 0:00:00]} Qb6 {[%emt 0:00:15]} (22... Nc6 {looks sharper.} 23. Qd2 Qxb2 24. Rd1 Nce7) 23. Qxb6 {[%emt 0:00:00]} Nxb6 {[%emt 0:00:04]} 24. Ng5 {[%emt 0:00:00]} Nd5 {[%emt 0:02:41]} 25. Rf1 {[%emt 0:01:24]} Ne3 {[%emt 0:17:14]} 26. Rf4 {[%emt 0:00:57]} Nd5 {[%emt 0:03:41] Excellent horsemanship.} 27. Rf1 {[%emt 0:00:26][%mdl 1024] White has compensation.} b5 {[%emt 0:00:53]} 28. c3 {[%emt 0:01:52]} (28. Rxh7 $2 f6 29. Be2 fxg5 $19) (28. Nxh7 $2 Kg7 29. Nxf8 Kxh6 $19 (29... Rxf8 30. Bxf7 Rxf7 31. Rxf7+ Kxf7 32. Rh5 $17)) 28... Rad8 {[%emt 0:02:07]} 29. Bf3 {[%emt 0:01:18]} (29. Rxh7 $2 f6 30. Be2 fxg5 $19) (29. Rf5 $11 {remains equal.}) 29... Ne3 $17 {[%emt 0:01:05]} 30. Re1 {[%emt 0:00:26]} Nxf3+ {[%emt 0:00:38]} 31. gxf3 {[%emt 0:00:18]} Nf5 {[%emt 0:00:04]} (31... Rfe8 $17 32. Kf2 Nf5 33. Rxh7 Rxe1 34. Kxe1 Re8+ 35. Kd2 Ne3 36. Rxf7 Nc4+ 37. Kc2 Re5 38. Rxc7 Rxg5) 32. Rh5 {[%emt 0:00:43]} (32. Rxh7 $2 f6 33. Rxc7 fxg5 $19) 32... Ng7 {[%emt 0:00:43]} 33. Rxh7 {[%emt 0:00:29]} Rfe8 {[%emt 0:00:15]} 34. Re4 {[%emt 0:00:41]} Rxe4 {[%emt 0:02:02]} 35. fxe4 {[%emt 0:00:05][%cal Oh7h8]} Ne6 {[%emt 0:00:37]} ({Don't blunder} 35... f6 $2 36. Rxg7+ Kxg7 37. Ne6+ Kg6 38. Nxd8 $18) (35... Re8 $11 36. Rh4 f6) 36. Nxe6 $14 {[%emt 0:00:08]} (36. Nxf7 $2 {loses.} Kxh7 37. Nxd8 Nxd8 $19) 36... fxe6 {[%emt 0:00:09]} 37. Rxc7 {[%emt 0:00:03][%mdl 4096] Endgame KR-KR. White is a pawn up.} d5 {[%emt 0:00:16]} 38. e5 {[%emt 0:00:45]} d4 {[%emt 0:00:03] [#] Strongly threatening ...d3. The position is equal.} 39. cxd4 {[%emt 0:00:07]} Rxd4 {[%emt 0:00:03]} 40. Rc6 {[%emt 0:00:09][%csl LRa6,LRe6]} Rd1+ {[%emt 0:00:03]} 41. Kg2 {[%emt 0:00:20]} Rd2+ {[%emt 0:00:06]} 42. Kg3 {[%emt 0:00:03]} a5 {[%emt 0:00:05][%cal Ba6a5,Ba5a4][%mdl 32]} 43. a4 {[%emt 0:03:09]} Rxb2 {[%emt 0:01:20]} 44. axb5 {[%emt 0:00:10]} a4 {[%emt 0:00:13]} 45. b6 {[%emt 0:00:50]} a3 {[%emt 0:00:06]} 46. Rc8+ {[%emt 0:00:34]} Kf7 {[%emt 0:00:11]} 47. Ra8 {[%emt 0:00:17]} a2 {[%emt 0:01:46]} 48. b7 {[%emt 0:00:10]} Kg6 {[%emt 0:00:08]} 49. Rxa2 {[%emt 0:00:47]} Rb3+ {[%emt 0:00:06]} 50. Kg2 {[%emt 0:00:29]} Rxb7 {[%emt 0:00:05]} 51. Rf2 {[%emt 0:00:04]} Kg5 {[%emt 0:00:15]} 52. Rf6 {[%emt 0:00:44]} Rb2+ {[%emt 0:00:02]} 53. Kg3 {[%emt 0:00:19] h4+ is the strong threat.} Rb3+ {[%emt 0:00:03] Weighted Error Value: White=0.11 (very precise) /Black=0.12 (very precise)   Mistake:       	White=2     	Black=4      Inaccurate:     	White=3     	Black=3      OK:         	White=15    	Black=21     Best:        	White=3     	Black=6      Strong:       	White=1     	---        Brilliant:      	White=1     	---} 1/2-1/2

[Event "FIDE World School-ch G-15 2025"]
[Site "Vrnjacka Banja"]
[Date "2025.03.24"]
[Round "5.3"]
[White "Assylkhan, Asiya"]
[Black "Ferrer Naranjo, Liennys"]
[Result "1/2-1/2"]
[Annotator "TA"]
[ECO "D12"]
[WhiteElo "1969"]
[BlackElo "1950"]
[PlyCount "88"]
[EventDate "2025.03.19"]
[EventType "swiss"]
[EventCountry "SRB"]
[SourceTitle "playchess.com"]
[Source "ChessBase"]
[SourceQuality "1"]
[TimeControl "5400+30"]

{[%evp 15,88,24,23,15,22,7,23,14,13,9,37,14,37,8,4,12,10,0,26,-1,-5,0,-7,-16,0,0,0,-49,-51,-37,-8,-64,0,-50,-59,-180,-127,-122,-127,-216,-43,-54,-30,-21,-20,-71,-47,-72,0,-12,0,0,0,0,0,0,0,-176,-158,-168,0,0,0,0,0,0,0,0,0,0,0,0,0,0,0]} 1. d4 {[%emt 1:31:00]} d5 {[%emt 1:31:00]} 2. c4 {[%emt 0:00:00]} c6 {[%emt 0:00:00]} 3. Nf3 {[%emt 0:00:00]} Nf6 {[%emt 0:00:00]} 4. e3 {[%emt 0:00:00]} Bf5 {[%emt 0:00:00]} 5. Nh4 {[%emt 0:00:00]} Bg6 {[%emt 0:00:00]} 6. Nc3 {[%emt 0:00:00]} e6 {[%emt 0:00:00]} 7. Qb3 {[%emt 0:00:00]} Qb6 {[%emt 0:00:00]} 8. Nxg6 {[%emt 0:00:00]} hxg6 {[%emt 0:00:00]} 9. Bd2 {[%emt 0:00:00] D12: Slav Defence: 3 Nf3 Nf6 4 e3 Bf5.} Nbd7 {[%emt 0:00:00]} 10. Qc2 {[%emt 0:00:00]} Be7 {[%emt 0:00:00]} 11. cxd5 {[%emt 0:00:00] White has an edge.} exd5 {[%emt 0:00:00]} 12. Be2 {[%emt 0:00:00]} a5 $146 {[%emt 0:00:00]} (12... Rc8 13. Rc1 Bb4 14. O-O Bd6 15. g3 O-O 16. Bf3 Rfe8 17. Bg2 Nf8 18. Rfd1 Rcd8 {½-½ Jelen,I (2374)-Budihna,K (2062) Nova Gorica op 23rd 2018 (4)}) 13. h3 {[%emt 0:00:00]} Bb4 {[%emt 0:00:00]} 14. Bd3 {[%emt 0:00:00]} Qd8 {[%emt 0:00:00]} 15. a3 {[%emt 0:00:00]} Bd6 {[%emt 0:00:00]} 16. Rb1 {[%emt 0:00:00]} Qe7 {[%emt 0:00:00]} 17. b4 {[%emt 0:00:00]} axb4 {[%emt 0:00:00]} 18. axb4 {[%emt 0:00:00]} O-O {[%emt 0:00:00][%cal Ob7b5]} 19. Na4 {[%emt 0:00:00]} b5 {[%emt 0:00:00]} 20. Nc5 {[%emt 0:00:00]} Nxc5 {[%emt 0:00:00]} 21. dxc5 {[%emt 0:00:00]} (21. bxc5 $11 Bc7 22. O-O) 21... Be5 $36 {[%emt 0:00:00][%mdl 2048] Black has good play.} 22. O-O {[%emt 0:00:00]} Ra4 {[%emt 0:00:00]} 23. Rfe1 {[%emt 0:00:00] [#]} (23. f4 $1 $11 Bc7 24. Ra1) 23... Ne4 {[%emt 0:00:00]} 24. f4 {[%emt 0:03:35]} (24. Bxe4 $11 dxe4 25. Bc3 (25. Qxe4 $2 Bh2+ 26. Kxh2 Qxe4 $19)) 24... Bf6 {[%emt 0:00:00] Strong Square Black (e4)} 25. g4 {[%emt 0:00:31] [#]} (25. Bxe4 $15 Qxe4 26. Qxe4 dxe4 27. Red1) 25... Bh4 {[%emt 0:00:00]} (25... Rfa8 $1 $19 {And now ...Ra2 would win.} 26. g5 Bxg5 27. Bxe4 Ra2) 26. Re2 $17 {[%emt 0:02:27]} Rfa8 {[%emt 0:06:18]} 27. Bxe4 {[%emt 0:00:33]} (27. Bc1 $17) 27... dxe4 $2 {[%emt 0:01:08]} (27... Ra2 $1 $19 {[%cal Ra2c2]} 28. Rb2 Rxb2 29. Qxb2 Qxe4) 28. Bc3 $15 {[%emt 0:01:11]} Bf6 {[%emt 0:02:21]} 29. Bxf6 {[%emt 0:01:06]} gxf6 {[%emt 0:00:14]} 30. Qb2 {[%emt 0:00:18]} (30. Rd2 $11 {remains equal.}) 30... Ra3 $17 {[%emt 0:01:14]} 31. Rd1 {[%emt 0:00:06]} Qe6 {[%emt 0:01:36]} (31... Rd3 $17 32. Rdd2 Kh7) 32. Qd4 {[%emt 0:01:57]} Ra2 {[%emt 0:01:06]} 33. Red2 {[%emt 0:00:20]} Qb3 {[%emt 0:00:30]} 34. Qxe4 {[%emt 0:01:14]} Rxd2 {[%emt 0:00:58]} 35. Rxd2 $11 {[%emt 0:00:01][%mdl 4096] Endgame KQR-KQR. White is a pawn up.} Ra1+ {[%emt 0:00:08]} 36. Kh2 $2 {[%emt 0:00:23] [#]} (36. Kf2 $11) 36... Re1 $1 $19 {[%emt 0:00:24]} 37. Qd3 {[%emt 0:02:57]} (37. Qxc6 $2 {too greedy.} Qxe3 38. Qa8+ Kh7 $19 (38... Kg7 $2 39. Rg2 $19)) 37... Rxe3 $2 {[%emt 0:00:32]} (37... Qxb4 $19 38. g5 fxg5 (38... Qxc5 39. Qd8+ Kh7 40. Qxf6 $17)) 38. Qxb3 $11 {[%emt 0:00:10] The position is equal.} Rxb3 $19 {[%emt 0:00:04] KR-KR} 39. Rd6 {[%emt 0:00:03]} Rxb4 {[%emt 0:00:20]} 40. Rxf6 {[%emt 0:00:50][%cal Oh2g3]} Rc4 {[%emt 0:01:00]} 41. Rxc6 {[%emt 0:00:07]} Rxf4 {[%emt 0:00:23]} 42. Rb6 {[%emt 0:00:33]} b4 {[%emt 0:00:16]} 43. Kg3 {[%emt 0:00:43]} Rc4 {[%emt 0:00:10]} 44. c6 {[%emt 0:00:04]} Kg7 {[%emt 0:00:26] Weighted Error Value: White=0.28 (precise) /Black=0.22 (precise)   Loses game:     	White=1     	---        Missed win:     	---       	Black=2      Mistake:       	White=6     	Black=3      Inaccurate:     	White=2     	Black=3      OK:         	White=10    	Black=16     Best:        	White=1     	Black=2      Strong:       	---       	Black=1} 1/2-1/2

[Event "FIDE World School-ch G-15 2025"]
[Site "Vrnjacka Banja"]
[Date "2025.03.24"]
[Round "5.4"]
[White "Preobrazhenskaya, Diana"]
[Black "Leisle, Darya"]
[Result "1-0"]
[Annotator "TA"]
[ECO "B33"]
[WhiteElo "2032"]
[BlackElo "1750"]
[PlyCount "83"]
[EventDate "2025.03.19"]
[EventType "swiss"]
[EventCountry "SRB"]
[SourceTitle "playchess.com"]
[Source "ChessBase"]
[SourceQuality "1"]
[TimeControl "5400+30"]

{[%evp 31,83,42,47,43,52,39,42,54,50,38,31,29,31,29,39,41,58,29,29,20,42,52,34,39,28,27,91,89,106,102,151,142,178,199,223,216,211,237,225,220,200,206,609,628,912,497,539,456,552,560,1410,1725,1100,1018]} 1. e4 {[%emt 0:00:01]} c5 {[%emt 0:00:07]} 2. Nf3 {[%emt 0:00:05]} Nc6 {[%emt 0:00:07]} 3. d4 {[%emt 0:00:06]} cxd4 {[%emt 0:00:05]} 4. Nxd4 {[%emt 0:00:05]} Nf6 {[%emt 0:00:07]} 5. Nc3 {[%emt 0:00:04]} e5 {[%emt 0:00:10]} 6. Ndb5 {[%emt 0:00:05][%cal Bd4b5,Bb5a3,Ba3c2,Bc2e3,Be3d5][%mdl 32]} d6 {[%emt 0:00:07]} 7. Bg5 {[%emt 0:00:18]} a6 {[%emt 0:00:11]} 8. Na3 {[%emt 0:00:05]} b5 {[%emt 0:00:10]} 9. Nd5 {[%emt 0:00:14]} Be7 {[%emt 0:00:14]} 10. Bxf6 {[%emt 0:00:29]} Bxf6 {[%emt 0:00:12]} 11. c3 {[%emt 0:00:29]} O-O {[%emt 0:00:54]} 12. Nc2 {[%emt 0:00:43]} Bg5 {[%emt 0:00:22]} 13. a4 {[%emt 0:00:24]} bxa4 {[%emt 0:00:26]} 14. Rxa4 {[%emt 0:00:05]} a5 {[%emt 0:00:41]} 15. Bc4 {[%emt 0:02:22]} Rb8 {[%emt 0:00:33] 15...Bd7 is vanishing.} 16. b3 {[%emt 0:00:42] 16.Ra2 is not played anymore.} Kh8 {[%emt 0:00:27]} 17. Nce3 {[%emt 0:00:10] Strong Square White (d5) B33: Sicilian: Pelikan and Sveshnikov Variations.} Ne7 {[%emt 0:03:37]} 18. Nxe7 {[%emt 0:00:55]} Qxe7 {[%emt 0:00:15]} 19. Nd5 {[%emt 0:00:05] White is slightly better.} ({Much worse is} 19. Rxa5 Bxe3 20. fxe3 Qh4+ 21. Kd2 Bb7 $17 (21... Qxe4 22. Bd5 $15)) 19... Qd8 {[%emt 0:04:08]} 20. O-O {[%emt 0:00:34]} f5 {[%emt 0:02:32]} 21. Qd3 {[%emt 0:00:24]} fxe4 {[%emt 0:03:36]} 22. Qxe4 {[%emt 0:00:05]} Bf5 {[%emt 0:04:11] This pair of bishops is nice.} 23. Qe2 {[%emt 0:00:50]} Bh4 {[%emt 0:10:47]} 24. g3 $146 {[%emt 0:20:47]} (24. Ne3 Bd7 25. Ra2 Qb6 26. Qd3 Qc5 27. Qd5 Qxd5 28. Bxd5 Bd8 29. Rd1 Be8 30. g3 Bc7 31. h4 {½-½ Geissler,W (2333)-Grebenshchikov,A (2340) W-Cup21 WS06 email 2015}) 24... Bg5 {[%emt 0:26:39]} 25. Rfa1 {[%emt 0:04:01]} Qd7 {[%emt 0:05:32]} 26. Rxa5 {[%emt 0:04:51] Strong Rooks White (a1+a5)} Bg4 {[%emt 0:00:29]} 27. Qe1 {[%emt 0:02:58]} Bf3 {[%emt 0:07:18]} 28. Ne3 {[%emt 0:02:36]} Bxe3 {[%emt 0:13:11]} (28... Bd8 $11) 29. Qxe3 $16 {[%emt 0:01:32]} d5 {[%emt 0:00:56]} 30. Bf1 {[%emt 0:06:30]} Qf5 {[%emt 0:08:23]} (30... d4 $142 31. Qxe5 d3) 31. b4 {[%emt 0:01:23]} Rbc8 {[%emt 0:05:46] [#]} 32. c4 $1 {[%emt 0:07:52][%mdl 512]} dxc4 {[%emt 0:01:17]} (32... Rb8 33. cxd5) 33. Rxe5 {[%emt 0:00:03]} Qf6 {[%emt 0:00:42]} 34. Rc1 {[%emt 0:00:14][%cal Ba1c1,Bc1c3,Bc3d3,Bd3f3][%mdl 32]} Qf7 {[%emt 0:02:33]} 35. Re7 {[%emt 0:08:57] Black is weak on the dark squares} Qd5 {[%emt 0:00:31]} 36. h4 {[%emt 0:00:22]} c3 $2 {[%emt 0:00:42]} (36... h6 37. Qa7 (37. Qc3 Rf6 $18) 37... Ra8) 37. Rxc3 $18 {[%emt 0:01:22] White is clearly winning.} Ra8 {[%emt 0:00:29]} 38. Rd3 {[%emt 0:03:17]} Qc6 {[%emt 0:00:30]} 39. Qg5 {[%emt 0:01:43][%csl Ge7][%cal Rg5g7] [#]} Rg8 {[%emt 0:00:30]} 40. b5 {[%emt 0:00:33]} Qf6 {[%emt 0:00:32]} 41. Qxf6 {[%emt 0:00:06]} gxf6 {[%emt 0:00:07]} 42. Rxf3 {[%emt 0:00:03] Weighted Error Value: White=0.36/Black=0.75  Mistake:       	---       	Black=3      Inaccurate:     	White=1     	Black=2      OK:         	White=11    	Black=7      Best:        	White=3     	Black=2} 1-0

[Event "FIDE World School-ch G-15 2025"]
[Site "Vrnjacka Banja"]
[Date "2025.03.24"]
[Round "5.5"]
[White "Aadya Gupta"]
[Black "Torres Ccahuay, Dayana Nievevska"]
[Result "1-0"]
[Annotator "NA RC"]
[ECO "D46"]
[WhiteElo "1928"]
[BlackElo "1840"]
[PlyCount "117"]
[EventDate "2025.03.19"]
[EventType "swiss"]
[EventCountry "SRB"]
[SourceTitle "playchess.com"]
[Source "ChessBase"]
[SourceQuality "1"]
[TimeControl "5400+30"]

1. d4 {[%emt 0:00:02]} d5 {[%emt 0:00:23]} 2. c4 {[%emt 0:00:02]} e6 {[%emt 0:00:10]} 3. Nf3 {[%emt 0:00:24]} Nf6 {[%emt 0:00:14]} 4. Nc3 {[%emt 0:00:02]} c6 {[%emt 0:00:06]} 5. e3 {[%emt 0:00:47]} Nbd7 {[%emt 0:00:27]} 6. b3 {[%emt 0:04:11]} Bd6 {[%emt 0:01:22]} 7. Bb2 {[%emt 0:01:32]} Qe7 {[%emt 0:01:13]} 8. Bd3 {[%emt 1:27:30]} O-O {[%emt 0:01:30]} 9. Qc2 {[%emt 0:00:00]} Re8 {[%emt 0:00:33]} 10. Be2 {[%emt 0:00:00]} h6 {[%emt 0:10:04]} 11. O-O {[%emt 0:00:00]} e5 {[%emt 0:00:13]} 12. cxd5 {[%emt 0:00:00]} cxd5 {[%emt 0:02:19]} 13. Nb5 {[%emt 0:00:00]} e4 {[%emt 0:09:57]} 14. Nxd6 {[%emt 0:00:00]} Qxd6 {[%emt 0:00:26]} 15. Ne5 {[%emt 0:00:00]} Nb6 {[%emt 0:10:32]} 16. a4 {[%emt 0:00:00]} Nh7 {[%emt 0:07:30]} 17. f4 {[%emt 0:00:00]} f6 {[%emt 0:04:26]} 18. Ba3 {[%emt 0:00:00]} Qd8 {[%emt 0:02:10]} 19. Ng6 {[%emt 0:00:00]} Bf5 {[%emt 0:02:21]} 20. Nh4 {[%emt 0:00:00]} Be6 {[%emt 0:04:16]} 21. Bh5 {[%emt 0:00:00]} Bf7 {[%emt 0:00:10]} 22. Bxf7+ {[%emt 0:00:00]} Kxf7 {[%emt 0:00:14]} 23. Nf5 {[%emt 0:00:00]} Re6 {[%emt 0:41:24]} 24. Qe2 {[%emt 0:00:00]} Nf8 {[%emt 0:00:00]} 25. Qg4 {[%emt 0:00:00]} g6 {[%emt 0:00:00]} 26. Nxh6+ {[%emt 0:00:00]} Ke8 {[%emt 0:00:00]} 27. f5 {[%emt 0:00:00]} gxf5 {[%emt 0:00:00]} 28. Qh5+ {[%emt 0:00:00]} Kd7 {[%emt 0:00:00]} 29. Qf7+ {[%emt 0:00:00]} Re7 {[%emt 0:00:00]} 30. Qxe7+ {[%emt 0:00:00]} Qxe7 {[%emt 0:00:00]} 31. Bxe7 {[%emt 0:00:00]} Kxe7 {[%emt 0:00:00]} 32. Nxf5+ {[%emt 0:00:00]} Ke6 {[%emt 0:00:00]} 33. Rac1 {[%emt 0:00:00]} Nbd7 {[%emt 0:00:00]} 34. g4 {[%emt 0:00:00]} a5 {[%emt 0:00:00]} 35. Rc7 {[%emt 0:00:00]} b5 {[%emt 0:00:00]} 36. axb5 {[%emt 0:00:00]} Rb8 {[%emt 0:00:00]} 37. Rc6+ {[%emt 0:00:00]} Kf7 {[%emt 0:00:00]} 38. Ra1 {[%emt 0:00:00]} Kg6 {[%emt 0:00:00]} 39. Rxa5 {[%emt 0:00:00]} Kg5 {[%emt 0:00:00]} 40. h3 {[%emt 0:00:00]} Ng6 {[%emt 0:00:00]} 41. Ra7 {[%emt 0:00:00]} Ndf8 {[%emt 0:00:00]} 42. b6 {[%emt 0:00:00]} Nh4 {[%emt 0:00:00]} 43. Nxh4 {[%emt 0:00:00]} Kxh4 {[%emt 0:00:00]} 44. b7 {[%emt 0:00:00]} Kg3 {[%emt 0:00:00]} 45. Rc8 {[%emt 0:00:00]} Nd7 {[%emt 0:00:00]} 46. Rxb8 {[%emt 0:00:00]} Nxb8 {[%emt 0:00:00]} 47. Ra8 {[%emt 0:00:00]} Nc6 {[%emt 0:00:00]} 48. b8=Q+ {[%emt 0:00:00]} Nxb8 {[%emt 0:00:00]} 49. Rxb8 {[%emt 0:00:00]} Kf3 {[%emt 0:00:00]} 50. h4 {[%emt 0:00:00]} Kxe3 {[%emt 0:00:00]} 51. h5 {[%emt 0:00:00]} Kxd4 {[%emt 0:00:00]} 52. h6 {[%emt 0:00:00]} e3 {[%emt 0:00:00]} 53. h7 {[%emt 0:00:00]} Kd3 {[%emt 0:00:00]} 54. h8=Q {[%emt 0:00:00]} d4 {[%emt 0:00:00]} 55. Qxf6 {[%emt 0:00:00]} e2 {[%emt 0:00:00]} 56. Re8 {[%emt 0:00:00]} Kd2 {[%emt 0:00:00]} 57. Qxd4+ {[%emt 0:00:00]} Ke1 {[%emt 0:00:00]} 58. Qf2+ {[%emt 0:00:00]} Kd1 {[%emt 0:00:00]} 59. Qxe2+ {[%emt 0:00:00]} 1-0